bitfinex-derivatives/quotes_ETHF0:USTF0_20240928
["timestamp","ask_amount","ask_price","bid_price","bid_amount"]
[1727539160422,0.37425,2671.3,2671.2,1.38364018]
[1727539161424,0.37425,2671.3,2671.2,2.77780789]
[1727539161616,0.37425,2671.3,2671.2,2.77781653]
[1727539161818,0.37425,2671.3,2671.2,1.38364018]
[1727539162631,1.72425,2671.3,2671.2,1.38364018]
[1727539162833,2.12285,2671.3,2671.1,1.37184018]
[1727539163021,0.37426,2671.2,2671.1,1.37184018]
[1727539163224,1.7486,2671.3,2671.1,1.74612018]
[1727539163225,2.12286,2671.3,2671.1,1.74612018]
[1727539163623,2.12286,2671.3,2671.1,1.37184018]
[1727539163624,5.33066,2671.3,2671.1,1.37184018]
[1727539164328,5.33066,2671.3,2671.1,1.74612018]
[1727539165728,0.37426,2671.2,2671.1,1.37184018]
[1727539165928,5.33066,2671.3,2671.1,1.74611018]
[1727539167433,1.35,2671.2,2671.1,0.76488]
[1727539167626,1.35,2671.2,2671.1,1.37184018]
[1727539167825,1.35,2671.2,2671.1,0.3906]
[1727539168129,1.72426,2671.2,2671.1,0.3906]
[1727539168423,1.72426,2671.2,2671.0,0.98124018]
[1727539168424,0.37428,2671.1,2671.0,0.98124018]
[1727539169524,0.37428,2671.1,2671.0,2.37667828]
[1727539170129,0.37428,2671.1,2671.0,0.98124018]
[1727539170338,0.37428,2671.1,2671.0,2.37698023]
[1727539171136,0.37428,2671.1,2671.0,1.39574005]
[1727539171932,1.72427,2671.2,2671.0,3.2424198]
[1727539172137,1.72427,2671.2,2671.1,0.98138017]
[1727539175934,1.72427,2671.2,2671.1,2.37798643]
[1727539176633,1.72427,2671.2,2671.1,1.39660626]
[1727539176932,1.35,2671.2,2671.1,3.24327601]
[1727539178930,1.35,2671.2,2671.1,3.24339467]
[1727539179133,1.72426,2671.2,2671.1,2.86911467]
[1727539179529,1.72426,2671.2,2671.1,3.24871467]
[1727539179741,1.35,2671.2,2671.1,3.62299467]
[1727539180740,1.35,2671.2,2671.1,2.15060492]
[1727539181343,1.35,2671.2,2671.1,3.62299467]
[1727539181546,1.72426,2671.2,2671.1,3.24871467]
[1727539182445,1.72426,2671.2,2671.1,3.62299467]
[1727539182645,1.35,2671.2,2671.1,3.62299467]
[1727539183548,1.35,2671.2,2671.1,2.15060492]
[1727539183744,1.35,2671.2,2671.1,4.01019028]
[1727539185048,1.35,2671.2,2671.1,2.53722025]
[1727539185249,1.35,2671.2,2671.1,4.01021125]
[1727539185950,1.35,2671.2,2671.1,4.01024121]
[1727539186450,1.35,2671.2,2671.1,2.53722025]
[1727539186850,1.35,2671.2,2671.1,4.01027102]
[1727539187353,1.35,2671.2,2671.1,2.53722025]
[1727539187552,1.35,2671.2,2671.1,4.01026101]
[1727539187851,1.35,2671.2,2671.1,2.53722025]
[1727539188153,1.35,2671.2,2671.1,4.0102668]
[1727539188854,1.35,2671.2,2671.1,2.53722025]
[1727539189953,4.5578,2671.3,2671.2,0.37426]
[1727539190147,1.35,2671.3,2671.2,3.24414024]
[1727539191052,1.72425,2671.3,2671.2,2.86988024]
[1727539192549,1.72423,2671.5,2671.3,0.37424]
[1727539192841,1.72423,2671.5,2671.4,1.15814]
[1727539193046,1.72423,2671.5,2671.4,2.14010767]
[1727539193250,1.72423,2671.5,2671.4,0.7839]
[1727539193448,5.46743,2671.5,2671.4,0.7839]
[1727539195147,1.72423,2671.5,2671.4,0.7839]
[1727539196256,5.46743,2671.5,2671.4,0.7839]
[1727539196557,1.72423,2671.5,2671.4,0.7839]
[1727539197952,1.72423,2671.5,2671.4,1.76586767]
[1727539199756,1.72423,2671.5,2671.4,0.7839]
[1727539200655,0.37423,2671.5,2671.4,0.7839]
[1727539200859,0.37423,2671.5,2671.4,1.76593582]
[1727539204161,1.30979,2671.5,2671.4,1.76593582]
[1727539204861,1.30979,2671.5,2671.4,0.98203582]
[1727539207463,2.24535,2671.5,2671.4,0.98203582]
[1727539208560,2.24535,2671.5,2671.4,1.01643582]
[1727539208962,5.98855,2671.5,2671.4,1.01643582]
[1727539211564,5.05299,2671.5,2671.4,1.01643582]
[1727539212766,5.05299,2671.5,2671.4,0.0344]
[1727539217563,6.40299,2671.5,2671.4,0.0344]
[1727539224573,9.61079,2671.5,2671.4,0.0344]
[1727539225574,0.37424,2671.4,2671.3,0.3805]
[1727539225774,0.74664,2671.4,2671.3,0.3805]
[1727539226173,3.95444,2671.4,2671.3,0.3805]
[1727539229072,0.74664,2671.4,2671.3,0.3805]
[1727539229277,3.95444,2671.4,2671.3,0.3805]
[1727539231980,0.74664,2671.4,2671.3,0.3805]
[1727539232276,4.89004,2671.4,2671.3,0.3805]
[1727539236684,1.30988,2671.3,2671.2,0.4058]
[1727539236872,8.87488,2671.3,2671.2,0.4058]
[1727539237482,9.81051,2671.3,2671.2,0.4058]
[1727539237785,9.26688,2671.3,2671.2,0.4058]
[1727539241881,9.26688,2671.3,2671.1,0.3942]
[1727539241882,1.31003,2671.0,2670.9,0.3983]
[1727539242087,5.86783,2671.0,2670.9,0.3983]
[1727539242388,9.61183,2671.0,2670.9,0.3983]
[1727539243191,8.67609,2671.0,2670.9,0.3983]
[1727539244795,4.93209,2671.0,2670.9,0.3983]
[1727539246794,11.14709,2671.0,2670.9,0.3983]
[1727539248095,7.93929,2671.0,2670.9,0.3983]
[1727539248398,11.14709,2671.0,2670.9,0.3983]
[1727539253793,4.93209,2671.0,2670.9,0.3983]
[1727539253994,4.93209,2671.0,2670.9,0.8051]
[1727539254402,5.86783,2671.0,2670.9,0.8051]
[1727539256997,12.08283,2671.0,2670.9,0.8051]
[1727539257799,5.86783,2671.0,2670.9,0.8051]
[1727539261709,3.58209,2671.0,2670.9,0.8051]
[1727539262104,3.2078,2671.0,2670.9,6.27341]
[1727539263612,3.2078,2671.0,2670.9,12.27341]
[1727539263809,2.5939,2671.0,2670.9,12.27341]
[1727539265215,2.5939,2671.0,2670.9,6.27341]
[1727539265414,2.5939,2671.0,2670.9,12.27341]
[1727539265810,2.5939,2671.0,2670.9,6.27341]
[1727539266613,2.5939,2671.0,2670.9,12.27341]
[1727539267008,2.5939,2671.0,2670.9,6.27341]
[1727539268516,2.5939,2671.0,2670.9,4.92341]
[1727539268817,2.96819,2671.0,2670.9,0.8051]
[1727539269412,2.96819,2671.0,2670.9,4.5491]
[1727539269613,2.96819,2671.0,2670.9,0.8051]
[1727539269815,2.96819,2671.0,2670.9,4.5491]
[1727539270016,2.96819,2671.0,2670.9,0.8051]
[1727539271216,3.58209,2671.0,2670.9,0.8051]
[1727539272016,3.58209,2671.0,2670.9,0.4068]
[1727539272325,3.58209,2671.0,2670.8,0.3781]
[1727539272326,0.37431,2670.9,2670.8,0.3781]
[1727539272518,0.37435,2670.6,2670.5,1.0388]
[1727539272715,0.37438,2670.4,2670.3,0.98203582]
[1727539272921,0.37438,2670.4,2670.3,0.37439]
[1727539273220,0.76217,2670.5,2670.3,0.37439]
[1727539273427,0.76217,2670.5,2670.4,0.37438]
[1727539273428,0.3878,2670.5,2670.4,0.37438]
[1727539277726,0.76216,2670.5,2670.4,0.37438]
[1727539279029,0.3878,2670.5,2670.4,0.37438]
[1727539281625,0.76216,2670.5,2670.4,0.37438]
[1727539285025,0.76216,2670.5,2670.4,0.40878]
[1727539285837,0.3878,2670.5,2670.4,0.40878]
[1727539287629,0.76216,2670.5,2670.4,0.40878]
[1727539287829,0.3878,2670.5,2670.4,0.40878]
[1727539292446,0.76216,2670.5,2670.4,0.40878]
[1727539295152,0.3878,2670.5,2670.4,0.40878]
[1727539295647,0.76216,2670.5,2670.4,0.40878]
[1727539297554,0.3878,2670.5,2670.4,0.40878]
[1727539297753,0.37436,2670.6,2670.5,0.37436]
[1727539299542,4.34965,2670.7,2670.5,0.37436]
[1727539299746,0.37435,2670.6,2670.5,0.74346]
[1727539300053,3.97234,2670.7,2670.6,0.7571]
[1727539300753,3.58214,2670.7,2670.6,0.7571]
[1727539303444,3.58214,2670.7,2670.6,1.13145]
[1727539303863,3.58214,2670.7,2670.6,0.7571]
[1727539304850,0.087,2670.9,2670.6,5.8519]
[1727539305158,0.93568,2671.2,2671.0,0.37428]
[1727539305159,0.46127,2671.2,2671.0,0.37428]
[1727539305462,0.46127,2671.2,2671.1,0.3857]
[1727539305463,0.37427,2671.2,2671.1,0.3857]
[1727539317562,3.58206,2671.3,2671.1,1.7357]
[1727539317761,3.2078,2671.3,2671.2,0.37426]
[1727539319062,4.74775,2671.4,2671.2,0.37426]
[1727539319573,4.74775,2671.4,2671.1,2.10997]
[1727539319574,0.37425,2671.3,2671.1,2.10997]
[1727539321653,4.74774,2671.4,2671.2,0.37426]
[1727539322056,4.34684,2671.4,2671.2,0.37426]
[1727539322261,4.34684,2671.4,2671.1,1.7357]
[1727539322262,3.5769,2671.4,2671.3,0.37425]
[1727539323062,3.95114,2671.4,2671.3,0.4081]
[1727539323261,3.58204,2671.4,2671.3,0.4081]
[1727539326064,3.2078,2671.4,2671.3,0.78235]
[1727539326257,3.58204,2671.4,2671.3,0.4081]
[1727539326861,3.2078,2671.4,2671.3,0.78235]
[1727539328665,3.2078,2671.4,2671.3,0.4081]
[1727539329267,3.2078,2671.4,2671.3,0.78235]
[1727539329661,3.2078,2671.4,2671.3,4.52555]
[1727539329868,18.20001746,2671.7,2671.6,0.37421]
[1727539330056,18.20001746,2671.7,2671.6,1.35]
[1727539330365,18.20001746,2671.7,2671.6,1.72421]
[1727539332262,17.82582746,2671.7,2671.6,1.72421]
[1727539332566,17.82582746,2671.7,2671.6,5.46741]
[1727539332771,9.55971019,2671.7,2671.6,5.46741]
[1727539344278,9.55971019,2671.7,2671.6,11.46741]
[1727539344669,8.99812671,2671.7,2671.6,11.46741]
[1727539346080,8.99812671,2671.7,2671.6,5.46741]
[1727539351390,0.74746,2672.0,2671.8,0.37418]
[1727539351685,0.74746,2672.0,2671.8,1.72418]
[1727539352185,0.37417,2671.9,2671.8,1.72418]
[1727539353892,0.74746,2672.0,2671.8,1.72418]
[1727539354891,0.37417,2671.9,2671.8,1.72418]
[1727539356395,0.37417,2671.9,2671.8,1.35]
[1727539356600,0.75347,2671.9,2671.8,1.35]
[1727539361802,0.75347,2671.9,2671.8,1.72418]
[1727539362100,0.3793,2671.9,2671.8,1.72418]
[1727539362301,0.3733,2672.0,2671.9,0.37417]
[1727539362488,0.3991,2672.1,2672.0,0.37415]
[1727539362685,0.3991,2672.1,2672.0,1.72415]
[1727539362888,3.5839,2672.2,2672.1,0.37414]
[1727539367299,3.95802,2672.2,2672.1,0.37414]
[1727539367499,4.34592,2672.2,2672.1,0.37414]
[1727539367694,1.13812,2672.2,2672.1,0.37414]
[1727539370098,0.764,2672.2,2672.1,0.37414]
[1727539373505,0.764,2672.2,2672.1,4.11654]
[1727539373697,0.75252,2672.3,2672.1,4.11654]
[1727539374002,0.75252,2672.3,2672.2,1.35]
[1727539374203,0.75252,2672.3,2672.2,1.7588]
[1727539379304,0.75252,2672.3,2672.2,2.13292]
[1727539379305,0.3784,2672.3,2672.2,2.13292]
[1727539380002,0.3946,2672.4,2672.3,0.37411]
[1727539380202,3.6014,2672.5,2672.4,0.3741]
[1727539380402,3.6014,2672.5,2672.4,1.7241]
[1727539381298,3.2078,2672.5,2672.4,1.7241]
[1727539381499,0.3963,2672.6,2672.5,0.37408]
[1727539382009,4.05604,2672.8,2672.5,0.3764]
[1727539382192,0.3872,2672.8,2672.7,0.37405]
[1727539382598,0.3872,2672.8,2672.7,0.74795]
[1727539383001,0.37404,2672.9,2672.7,0.74795]
[1727539383203,4.92032,2673.1,2672.7,0.74795]
[1727539383204,3.9853,2673.1,2672.8,1.35]
[1727539383398,4.3593,2673.1,2673.0,1.35]
[1727539384203,3.9853,2673.1,2672.7,1.35]
[1727539384509,0.37405,2672.7,2672.6,2.374]
[1727539384709,0.37405,2672.7,2672.6,2.112]
[1727539385909,0.75885,2672.7,2672.6,2.112]
[1727539387002,0.75885,2672.7,2672.6,2.48607]
[1727539387202,0.75885,2672.7,2672.6,2.112]
[1727539387506,0.75885,2672.7,2672.6,1.35]
[1727539387708,0.75885,2672.7,2672.4,1.35]
[1727539387709,0.37408,2672.5,2672.4,1.35]
[1727539388209,0.9352,2672.6,2672.2,2.38015582]
[1727539388409,0.9352,2672.6,2672.2,2.112]
[1727539388410,0.37411,2672.3,2672.2,2.112]
[1727539388605,0.37411,2672.3,2672.2,2.48612]
[1727539389309,1.1835,2672.4,2672.2,2.112]
[1727539389610,1.1835,2672.4,2672.3,0.37411]
[1727539389810,1.1835,2672.4,2672.2,2.112]
[1727539389811,1.1835,2672.4,2672.2,2.48612]
[1727539390014,1.1835,2672.4,2672.3,0.37411]
[1727539390405,0.8094,2672.4,2672.3,0.37411]
[1727539390601,0.8094,2672.4,2672.3,1.72411]
[1727539391014,1.1835,2672.4,2672.3,1.35]
[1727539391901,0.8094,2672.4,2672.3,1.72411]
[1727539392109,0.37408,2672.6,2672.4,0.37409]
[1727539392303,0.77688,2672.6,2672.5,1.7267]
[1727539392709,0.4028,2672.6,2672.5,2.10078]
[1727539392908,0.77687,2672.6,2672.5,1.7267]
[1727539394009,0.087,2672.8,2672.7,0.37405]
[1727539394218,0.4028,2672.9,2672.8,0.37404]
[1727539394708,3.2078,2673.0,2672.8,0.37403]
[1727539394917,3.98462,2673.0,2672.9,1.35]
[1727539395316,0.37403,2672.9,2672.8,1.35]
[1727539396512,0.37405,2672.7,2672.6,1.72406]
[1727539397211,4.54566,2673.0,2672.6,1.35]
[1727539397616,4.54566,2673.0,2672.6,1.72406]
[1727539397617,0.37405,2672.8,2672.6,1.72406]
[1727539398017,0.3869,2672.7,2672.6,1.72406]
[1727539398319,0.76095,2672.7,2672.6,1.72406]
[1727539398520,0.3869,2672.7,2672.6,1.72406]
[1727539398716,0.37404,2672.9,2672.6,1.35]
[1727539398921,0.75434,2672.9,2672.8,1.35]
[1727539400420,0.75434,2672.9,2672.8,1.72404]
[1727539400616,0.75434,2672.9,2672.8,1.35]
[1727539401417,0.75434,2672.9,2672.8,1.72404]
[1727539402418,0.75434,2672.9,2672.8,1.35]
[1727539403017,0.75434,2672.9,2672.8,1.72404]
[1727539405524,0.75434,2672.9,2672.8,1.35]
[1727539405723,0.75434,2672.9,2672.8,1.72404]
[1727539406624,0.75434,2672.9,2672.8,1.35]
[1727539407017,0.75434,2672.9,2672.8,1.7402]
[1727539409930,0.37404,2672.9,2672.8,2.11424]
[1727539410326,3.9866,2673.1,2672.9,0.37402]
[1727539410530,4.36061,2673.1,2673.0,1.35]
[1727539410925,3.95641,2673.1,2673.0,1.35]
[1727539416333,4.89141,2673.1,2673.0,1.35]
[1727539428544,3.95641,2673.1,2673.0,1.72401]
[1727539428742,3.58181,2673.1,2673.0,1.72401]
[1727539431044,0.37401,2673.1,2673.0,1.72401]
[1727539431242,3.58181,2673.1,2673.0,1.35]
[1727539432247,3.97681,2673.1,2673.0,1.35]
[1727539435247,0.76901,2673.1,2673.0,1.35]
[1727539435449,3.97681,2673.1,2673.0,1.35]
[1727539441046,3.58181,2673.1,2673.0,1.35]
[1727539443946,3.58181,2673.1,2673.0,1.72401]
[1727539444151,3.58181,2673.1,2673.0,1.35]
[1727539445157,3.58181,2673.1,2673.0,1.3844]
[1727539451857,4.92221,2673.1,2673.0,1.3844]
[1727539452561,3.98721,2673.1,2673.0,1.3844]
[1727539460360,4.92221,2673.1,2673.0,0.0344]
[1727539460564,4.92221,2673.1,2673.0,1.3844]
[1727539462770,4.92221,2673.1,2673.0,1.35]
[1727539469970,3.98721,2673.1,2672.8,1.37223582]
[1727539470281,1.30424,2673.0,2672.7,0.98203582]
[1727539470478,3.2078,2672.8,2672.7,0.98203582]
[1727539470778,0.37405,2672.7,2672.6,1.73780582]
[1727539471075,0.76815,2672.7,2672.6,2.7546588]
[1727539471675,0.76815,2672.7,2672.6,4.1046588]
[1727539472472,0.76815,2672.7,2672.6,2.3729588]
[1727539472776,0.76815,2672.7,2672.6,1.35]
[1727539473171,1.70329,2672.7,2672.6,1.35]
[1727539474578,5.44489,2672.7,2672.6,1.35]
[1727539477880,0.3741,2672.4,2672.3,0.3864]
[1727539478081,0.3741,2672.4,2672.3,1.7364]
[1727539478577,0.3741,2672.4,2672.3,0.3864]
[1727539478578,0.7619,2672.4,2672.3,0.3864]
[1727539478881,0.7619,2672.4,2672.3,1.7364]
[1727539479080,0.7619,2672.4,2672.3,1.35]
[1727539479273,1.69715,2672.4,2672.3,1.35]
[1727539479473,0.7619,2672.4,2672.3,1.35]
[1727539482779,3.9697,2672.4,2672.3,1.35]
[1727539484178,3.2078,2672.4,2672.3,1.35]
[1727539484383,3.2078,2672.4,2672.3,1.72411]
[1727539486285,3.2078,2672.7,2672.6,0.37407]
[1727539486483,3.58186,2672.7,2672.6,1.72407]
[1727539488788,3.58186,2672.7,2672.6,1.35]
[1727539492583,0.37406,2672.7,2672.6,1.35]
[1727539494779,0.37405,2672.7,2672.6,1.35]
[1727539501487,0.37405,2672.7,2672.6,1.72407]
[1727539502192,0.37405,2672.8,2672.7,0.37405]
[1727539502387,0.37405,2672.8,2672.7,1.72405]
[1727539503384,3.58183,2672.9,2672.8,0.37404]
[1727539503692,3.58183,2672.9,2672.8,1.17474]
[1727539504001,3.58183,2672.9,2672.8,0.8007]
[1727539505094,0.37405,2672.7,2672.6,1.35]
[1727539505296,1.30919,2672.7,2672.6,1.35]
[1727539505797,1.70949,2672.7,2672.6,1.35]
[1727539506601,0.77435,2672.7,2672.6,1.35]
[1727539511312,1.70949,2672.7,2672.6,1.35]
[1727539512509,0.77435,2672.7,2672.6,1.35]
[1727539517619,0.37405,2672.7,2672.6,1.72407]
[1727539519719,0.37405,2672.7,2672.6,2.10907]
[1727539520421,3.2078,2672.9,2672.6,1.735]
[1727539520624,3.2078,2672.9,2672.8,0.37404]
[1727539520820,3.2078,2672.9,2672.7,3.09878582]
[1727539521122,3.58183,2672.9,2672.8,0.77584]
[1727539521324,3.58183,2672.9,2672.8,0.4018]
[1727539529529,0.37403,2672.9,2672.8,0.4018]
[1727539532227,0.37404,2672.8,2672.7,1.35]
[1727539532430,0.37404,2672.8,2672.7,1.7505]
[1727539540439,0.37404,2672.8,2672.7,1.35]
[1727539549257,3.2078,2672.9,2672.7,1.35]
[1727539549458,0.37404,2672.8,2672.7,1.35]
[1727539550756,0.37405,2672.7,2672.6,1.35703582]
[1727539550963,0.75495,2672.7,2672.6,1.725]
[1727539553255,0.3809,2672.7,2672.6,1.725]
[1727539553456,0.75495,2672.7,2672.6,1.725]
[1727539554351,3.96275,2672.7,2672.6,1.725]
[1727539567361,0.75495,2672.7,2672.6,1.725]
[1727539567560,3.96275,2672.7,2672.6,1.725]
[1727539569464,0.75495,2672.7,2672.6,1.725]
[1727539569970,3.96275,2672.7,2672.6,1.725]
[1727539573366,3.5887,2672.7,2672.6,1.725]
[1727539573562,3.96275,2672.7,2672.6,1.725]
[1727539580574,0.37408,2672.5,2672.4,0.98203582]
[1727539580778,1.30929,2672.5,2672.4,0.98203582]
[1727539580971,11.9861,2672.5,2672.4,0.98203582]
[1727539581172,0.93528,2672.3,2672.2,0.262]
[1727539581475,1.30949,2672.1,2672.0,0.262]
[1727539581778,1.30959,2671.9,2671.8,0.98203582]
[1727539581971,4.51739,2671.9,2671.8,0.08063584]
[1727539582277,14.25979,2671.9,2671.8,0.08063584]
[1727539582481,0.37418,2671.8,2671.7,1.47305373]
[1727539582679,6.40204,2671.8,2671.7,1.47305373]
[1727539582979,12.40204,2671.8,2671.7,1.47305373]
[1727539586880,0.37421,2671.6,2671.5,1.35]
[1727539587180,3.58201,2671.6,2671.5,1.35]
[1727539587381,7.32521,2671.6,2671.5,1.35]
[1727539588785,0.37424,2671.4,2671.2,1.35]
[1727539589083,3.2078,2671.3,2671.2,1.35]
[1727539591984,3.58205,2671.3,2671.0,1.17029]
[1727539592288,0.37427,2671.2,2671.0,0.796]
[1727539592884,0.37428,2671.1,2671.0,0.796]
[1727539593073,0.37427,2671.2,2671.0,0.796]
[1727539593277,1.35,2671.1,2670.9,0.3789]
[1727539593477,0.37432,2670.8,2670.7,0.7766]
[1727539593681,0.37432,2670.8,2670.7,0.4049]
[1727539594985,0.37434,2670.7,2670.5,0.3994]
[1727539595189,3.2078,2670.6,2670.5,0.3994]
[1727539595485,3.58215,2670.6,2670.4,2.1266]
[1727539595687,3.2078,2670.6,2670.5,0.37436]
[1727539597283,3.2078,2670.6,2670.5,4.11916]
[1727539597481,0.4613,2671.0,2670.7,0.37432]
[1727539597685,0.3743,2671.0,2670.9,1.35]
[1727539598186,0.3743,2671.0,2670.9,1.7534]
[1727539599488,3.6107,2671.2,2670.9,1.7534]
[1727539599489,0.37428,2671.1,2670.9,1.7534]
[1727539600581,3.2078,2671.2,2670.9,2.12771]
[1727539600785,0.37428,2671.1,2670.9,1.7534]
[1727539601876,3.2078,2671.2,2670.9,1.7534]
[1727539602383,0.37428,2671.1,2670.9,1.7534]
[1727539602682,0.37429,2671.0,2670.9,1.7534]
[1727539603480,0.37429,2671.1,2670.9,1.7534]
[1727539603687,0.37429,2671.0,2670.9,1.7534]
[1727539604490,0.37429,2671.1,2670.9,1.7534]
[1727539604684,0.37428,2671.1,2670.9,1.7534]
[1727539604889,0.37429,2671.0,2670.9,1.7534]
[1727539605284,0.37429,2671.1,2670.9,1.7534]
[1727539605484,0.37429,2671.1,2670.9,2.1277]
[1727539605686,3.2078,2671.2,2670.9,2.1277]
[1727539605687,0.37429,2671.0,2670.9,1.7534]
[1727539605897,0.37428,2671.1,2670.9,2.12771]
[1727539606991,0.37429,2671.0,2670.9,1.7534]
[1727539607295,3.2078,2671.1,2670.9,1.7534]
[1727539607488,3.2078,2671.1,2671.0,0.37429]
[1727539607688,3.2078,2671.1,2670.9,1.7534]
[1727539607689,3.58208,2671.1,2670.9,2.1277]
[1727539608196,0.37429,2671.0,2670.9,1.7534]
[1727539608390,3.58209,2671.1,2670.9,2.12771]
[1727539610195,3.58209,2671.1,2670.9,0.77771]
[1727539610494,3.58209,2671.1,2670.9,0.7777]
[1727539611480,3.2078,2671.1,2670.9,0.4034]
[1727539611884,0.37429,2671.0,2670.9,0.4034]
[1727539612190,0.37431,2670.9,2670.8,0.8148]
[1727539613696,0.37431,2670.9,2670.8,0.408]
[1727539616500,0.37434,2670.7,2670.6,0.7763]
[1727539617297,0.37434,2670.7,2670.5,1.72435]
[1727539617692,0.37434,2670.7,2670.6,0.37435]
[1727539619195,3.58213,2670.8,2670.7,0.37434]
[1727539619390,3.2078,2670.8,2670.7,0.37434]
[1727539619791,3.2078,2670.8,2670.7,0.74734]
[1727539620592,0.349,2671.2,2670.7,0.373]
[1727539620593,3.58209,2671.1,2670.7,0.373]
[1727539620793,3.58209,2671.1,2671.0,0.37429]
[1727539621892,3.2078,2671.1,2671.0,0.37429]
[1727539623305,3.58208,2671.1,2671.0,0.37429]
[1727539623691,3.58208,2671.1,2670.9,1.753]
[1727539625502,3.58208,2671.1,2671.0,0.37429]
[1727539626806,0.37428,2671.1,2671.0,0.37429]
[1727539627403,0.37427,2671.2,2671.1,0.37428]
[1727539627698,0.37428,2671.1,2670.9,1.753]
[1727539627903,0.37428,2671.1,2671.0,0.37429]
[1727539629191,0.37428,2671.1,2670.9,2.1273]
[1727539629391,0.37428,2671.1,2671.0,0.37429]
[1727539629813,0.37428,2671.1,2670.9,2.1273]
[1727539630001,0.37428,2671.1,2671.0,0.37429]
[1727539631196,3.2078,2671.2,2671.0,0.37429]
[1727539632496,0.37428,2671.1,2671.0,0.37429]
[1727539632902,3.2078,2671.2,2671.1,0.37428]
[1727539633107,3.58208,2671.2,2671.1,1.35]
[1727539634608,0.37428,2671.1,2671.0,1.75869]
[1727539635109,3.2078,2671.2,2671.0,1.75869]
[1727539635703,0.37428,2671.1,2671.0,1.3844]
[1727539635907,0.37428,2671.1,2671.0,0.40869]
[1727539638310,0.37428,2671.1,2671.0,0.0344]
[1727539638811,0.37428,2671.1,2671.0,0.40869]
[1727539639211,0.37428,2671.1,2671.0,0.0344]
[1727539640511,0.37428,2671.1,2671.0,0.40869]
[1727539643815,0.37428,2671.1,2671.0,0.0344]
[1727539645516,0.37428,2671.1,2671.0,0.40869]
[1727539645715,0.37428,2671.1,2671.0,0.0344]
[1727539646018,0.37428,2671.1,2671.0,0.40869]
[1727539646214,0.37428,2671.1,2671.0,0.0344]
[1727539647113,3.58208,2671.1,2671.0,0.0344]
[1727539648625,3.58208,2671.1,2671.0,0.40869]
[1727539650320,3.58208,2671.1,2671.0,0.37429]
[1727539651226,3.58208,2671.1,2670.8,0.3769]
[1727539651417,3.58208,2671.1,2670.9,0.3743]
[1727539652023,0.37428,2671.1,2670.9,0.3743]
[1727539652218,3.58208,2671.1,2670.9,0.3743]
[1727539652822,3.58208,2671.1,2671.0,0.37429]
[1727539653512,0.37428,2671.1,2671.0,0.37429]
[1727539653711,3.58208,2671.1,2671.0,0.37429]
[1727539654423,3.58208,2671.1,2670.9,0.3743]
[1727539660723,3.58208,2671.1,2670.8,0.3769]
[1727539661227,3.58208,2671.1,2670.9,0.3743]
[1727539661625,3.2078,2671.2,2670.9,0.3743]
[1727539662031,0.37428,2671.1,2670.9,0.3743]
[1727539668524,0.37428,2671.1,2671.0,0.37429]
[1727539677232,3.2078,2671.2,2670.9,0.4087]
[1727539677430,0.3884,2671.0,2670.9,0.4087]
[1727539680638,0.76269,2671.0,2670.9,0.4087]
[1727539681429,0.76269,2671.0,2670.9,0.0344]
[1727539682439,0.76269,2671.0,2670.2,0.087]
[1727539682440,0.37439,2670.3,2670.2,0.087]
[1727539682631,0.37441,2670.2,2670.1,0.97693084]
[1727539682939,0.75531,2670.2,2670.1,0.97693084]
[1727539683340,0.75531,2670.2,2670.1,0.392]
[1727539684540,0.75531,2670.2,2669.9,0.37444]
[1727539684541,4.1257,2670.2,2669.5,0.087]
[1727539684730,4.1257,2670.2,2669.3,3.2078]
[1727539684731,3.2078,2670.1,2669.8,1.7382]
[1727539685433,3.2078,2670.1,2669.8,2.11266]
[1727539685838,3.2078,2670.1,2669.8,1.7382]
[1727539687042,3.2078,2670.1,2669.9,0.37445]
[1727539687242,3.2078,2670.1,2669.8,2.11265]
[1727539687643,3.2078,2670.1,2669.9,0.4062]
[1727539690747,3.2078,2670.1,2669.9,0.78065]
[1727539690943,3.2078,2670.1,2669.9,0.4062]
[1727539691539,3.2078,2670.1,2669.9,0.78065]
[1727539691743,3.2078,2670.1,2669.9,0.4062]
[1727539691947,3.58222,2670.1,2669.9,0.4062]
[1727539694046,3.2078,2670.1,2669.9,0.4062]
[1727539695147,3.58222,2670.1,2669.9,0.4062]
[1727539696143,3.2078,2670.1,2669.9,0.78065]
[1727539696944,3.58222,2670.1,2669.9,0.78065]
[1727539697545,3.2078,2670.1,2669.9,0.78065]
[1727539697850,3.2078,2670.1,2670.0,1.72443]
[1727539698450,3.2078,2670.1,2670.0,5.47003]
[1727539702348,3.2078,2670.1,2670.0,12.40612]
[1727539702552,0.349,2670.4,2670.3,0.37439]
[1727539702750,0.3743,2670.6,2670.4,0.37437]
[1727539702953,0.3743,2670.6,2670.5,2.12196]
[1727539703253,3.95684,2670.7,2670.5,2.12196]
[1727539703445,0.37435,2670.6,2670.5,1.7476]
[1727539703646,3.95684,2670.7,2670.5,2.12196]
[1727539703849,3.5825,2670.7,2670.5,1.7476]
[1727539704057,3.2078,2670.7,2670.6,0.37435]
[1727539704549,4.139,2671.0,2670.6,1.35]
[1727539704550,0.37432,2670.9,2670.6,1.35]
[1727539704753,0.74332,2670.9,2670.7,0.37433]
[1727539705142,0.74332,2670.9,2670.8,0.37432]
[1727539705550,0.369,2670.9,2670.8,0.37432]
[1727539706651,0.349,2671.3,2670.8,5.094]